fUSD/lending_fUSD_20250125
["ID","MTS","AMOUNT","RATE_DAILY","PERIOD"]
[350282200,1737766245626,-293.47548371,0.0002028,2]
[350282201,1737766245635,-453.46,0.0002028,2]
[350282202,1737766245644,-500.0,0.0002028,2]
[350282203,1737766245653,-500.0,0.0002028,2]
[350282204,1737766245662,-228.37,0.0002028,2]
[350282205,1737766245672,-646.21,0.0002028,2]
[350282206,1737766245682,-244.37,0.0002028,2]
[350282207,1737766245691,-500.0,0.0002028,2]
[350282208,1737766245701,-506.78,0.0002028,2]
[350282209,1737766245710,-500.0,0.0002028,2]
[350282210,1737766245719,-500.0,0.0002028,2]
[350282211,1737766245729,-613.79,0.0002028,2]
[350282212,1737766245738,-500.0,0.0002028,2]
[350282213,1737766245748,-500.0,0.0002028,2]
[350282214,1737766245761,-500.0,0.0002028,2]
[350282215,1737766245770,-666.7,0.0002028,2]
[350282216,1737766245780,-500.0,0.0002028,2]
[350282217,1737766245790,-500.0,0.0002028,2]
[350282218,1737766245801,-876.65,0.0002028,2]
[350282219,1737766245811,-686.14,0.0002028,2]
[350282220,1737766245820,-500.0,0.0002028,2]
[350282221,1737766245830,-167.48,0.0002028,2]
[350282222,1737766245840,-500.0,0.0002028,2]
[350282223,1737766245849,-828.64,0.0002028,2]
[350282224,1737766245858,-775.57,0.0002028,2]
[350282225,1737766245868,-500.0,0.0002028,2]
[350282226,1737766245877,-500.0,0.0002028,2]
[350282227,1737766245887,-672.65,0.0002028,2]
[350282228,1737766245896,-501.05,0.0002028,2]
[350282229,1737766245906,-694.2,0.0002028,2]
[350282230,1737766245915,-989.16,0.0002028,2]
[350282231,1737766245924,-500.0,0.0002028,2]
[350282232,1737766245934,-1184.1,0.0002028,2]
[350282233,1737766245943,-1009.71,0.0002028,2]
[350282234,1737766245953,-1377.37,0.0002028,2]
[350282235,1737766245963,-500.0,0.0002028,2]
[350282236,1737766245972,-352.90541393,0.0002028,2]
[350282237,1737766245982,-500.0,0.0002028,2]
[350282238,1737766245992,-500.0,0.0002028,2]
[350282239,1737766246002,-500.0,0.0002028,2]
[350282240,1737766246011,-700.38,0.0002028,2]
[350282241,1737766246021,-500.0,0.0002028,2]
[350282242,1737766246030,-1237.33,0.0002028,2]
[350282243,1737766246039,-608.51,0.0002028,2]
[350282244,1737766246067,-757.47,0.0002028,2]
[350282245,1737766246085,-500.0,0.0002028,2]
[350282246,1737766246095,-500.0,0.0002028,2]
[350282247,1737766246106,-528.77,0.0002028,2]
[350282248,1737766246116,-500.0,0.0002028,2]
[350282249,1737766246126,-500.0,0.0002028,2]
[350282250,1737766246136,-500.0,0.0002028,2]
[350282252,1737766246145,-600.49,0.0002028,2]
[350282254,1737766246155,-500.0,0.0002028,2]
[350282256,1737766246164,-500.0,0.0002028,2]
[350282257,1737766246173,-566.21,0.0002028,2]
[350282258,1737766246185,-678.28,0.0002028,2]
[350282259,1737766246195,-757.12,0.0002028,2]
[350282260,1737766246204,-500.0,0.0002028,2]
[350282261,1737766246214,-664.78,0.0002028,2]
[350282262,1737766246224,-1194.58,0.0002028,2]
[350282263,1737766246234,-500.0,0.0002028,2]
[350282264,1737766246243,-1260.01,0.0002028,2]
[350282265,1737766246252,-500.0,0.0002028,2]
[350282266,1737766246261,-500.0,0.0002028,2]
[350282267,1737766246271,-500.0,0.0002028,2]
[350282268,1737766246280,-500.0,0.0002028,2]
[350282269,1737766246289,-1586.5,0.0002028,2]
[350282270,1737766246299,-500.0,0.0002028,2]
[350282271,1737766246308,-500.0,0.0002028,2]
[350282272,1737766246318,-500.0,0.0002028,2]
[350282273,1737766246327,-500.0,0.0002028,2]
[350282274,1737766246336,-500.0,0.0002028,2]
[350282275,1737766246346,-500.0,0.0002028,2]
[350282276,1737766246357,-564.49,0.0002028,2]
[350282277,1737766246366,-729.96,0.0002028,2]
[350282278,1737766246375,-500.0,0.0002028,2]
[350282279,1737766246385,-500.0,0.0002028,2]
[350282280,1737766246396,-544.58,0.0002028,2]
[350282281,1737766246407,-511.55,0.0002028,2]
[350282282,1737766246416,-652.14,0.0002028,2]
[350282283,1737766246425,-500.0,0.0002028,2]
[350282284,1737766246434,-500.0,0.0002028,2]
[350282285,1737766246443,-500.0,0.0002028,2]
[350282286,1737766246452,-916.0,0.0002028,2]
[350282287,1737766246462,-500.0,0.0002028,2]
[350282288,1737766246471,-170.93,0.0002028,2]
[350282289,1737766246480,-1094.4,0.0002028,2]
[350282290,1737766246490,-150.0,0.00020299,4]
[350282291,1737766246499,-500.0,0.00020331,2]
[350282292,1737766246508,-150.0,0.00020349,4]
[350282293,1737766246518,-150.0,0.00020356,2]
[350282294,1737766246528,-875.72,0.00020356,2]
[350282295,1737766246537,-150.0,0.00020356,2]
[350282296,1737766246547,-300.0,0.00020356,2]
[350282297,1737766246556,-300.0,0.00020356,2]
[350282298,1737766246565,-22334.79869675,0.00020357,2]
[350282299,1737766246575,-150.0,0.00020359,4]
[350282300,1737766246584,-597.61,0.00020383,2]
[350282301,1737766246593,-384.08,0.00020383,2]
[350282302,1737766246603,-500.0,0.00020383,2]
[350282303,1737766246612,-193.27023943,0.000204,2]
[350282304,1737766246621,-478.549795,0.00020417,2]
[350282305,1737766246630,-490.821105,0.00020417,2]
[350282306,1737766246639,-500.0,0.00020417,2]
[350282307,1737766246650,-165.811224,0.00020417,2]
[350282308,1737766246661,-528.5,0.00020417,2]
[350282309,1737766246672,-500.0,0.00020417,2]
[350282310,1737766246682,-607.783084,0.00020417,2]
[350282311,1737766246691,-613.79,0.00020417,2]
[350282312,1737766246700,-337.92137514,0.00020417,2]
[350282313,1737766246711,-500.0,0.00020417,2]
[350282314,1737766246720,-500.0,0.00020417,2]
[350282315,1737766246731,-666.7,0.00020417,2]
[350282316,1737766246740,-500.0,0.00020417,2]
[350282317,1737766246751,-500.0,0.00020417,2]
[350282318,1737766246762,-876.65,0.00020417,2]
[350282319,1737766246772,-686.14,0.00020417,2]
[350282320,1737766246781,-500.0,0.00020417,2]
[350282321,1737766246790,-500.0,0.00020417,2]
[350282322,1737766246800,-828.64,0.00020417,2]
[350282323,1737766246809,-775.57,0.00020417,2]
[350282324,1737766246818,-500.0,0.00020417,2]
[350282325,1737766246827,-672.65,0.00020417,2]
[350282326,1737766246838,-501.05,0.00020417,2]
[350282327,1737766246847,-694.2,0.00020417,2]
[350282328,1737766246857,-989.16,0.00020417,2]
[350282329,1737766246866,-1184.1,0.00020417,2]
[350282330,1737766246875,-1009.71,0.00020417,2]
[350282331,1737766246884,-1377.37,0.00020417,2]
[350282332,1737766246892,-500.0,0.00020417,2]
[350282333,1737766246902,-500.0,0.00020417,2]
[350282334,1737766246911,-500.0,0.00020417,2]
[350282335,1737766246920,-500.0,0.00020417,2]
[350282336,1737766246929,-700.38,0.00020417,2]
[350282337,1737766246938,-500.0,0.00020417,2]
[350282338,1737766246948,-1237.33,0.00020417,2]
[350282339,1737766246957,-757.47,0.00020417,2]
[350282340,1737766246965,-500.0,0.00020417,2]
[350282341,1737766246974,-500.0,0.00020417,2]
[350282342,1737766246983,-528.77,0.00020417,2]
[350282343,1737766246992,-500.0,0.00020417,2]
[350282344,1737766247001,-500.0,0.00020417,2]
[350282345,1737766247010,-500.0,0.00020417,2]
[350282346,1737766247019,-600.49,0.00020417,2]
[350282347,1737766247028,-500.0,0.00020417,2]
[350282348,1737766247037,-500.0,0.00020417,2]
[350282349,1737766247045,-757.12,0.00020417,2]
[350282350,1737766247055,-678.28,0.00020417,2]
[350282351,1737766247063,-500.0,0.00020417,2]
[350282352,1737766247072,-664.78,0.00020417,2]
[350282353,1737766247081,-1194.58,0.00020417,2]
[350282354,1737766247090,-500.0,0.00020417,2]
[350282355,1737766247099,-1260.01,0.00020417,2]
[350282356,1737766247109,-500.0,0.00020417,2]
[350282357,1737766247118,-1586.5,0.00020417,2]
[350282358,1737766247128,-500.0,0.00020417,2]
[350282359,1737766247137,-500.0,0.00020417,2]
[350282360,1737766247145,-500.0,0.00020417,2]
[350282361,1737766247154,-500.0,0.00020417,2]
[350282362,1737766247164,-598.79,0.00020417,2]
[350282363,1737766247175,-564.49,0.00020417,2]
[350282364,1737766247184,-729.96,0.00020417,2]
[350282365,1737766247193,-237.72028472,0.00020417,2]
[350282366,1737766247202,-500.0,0.00020417,2]
[350282367,1737766247212,-544.58,0.00020417,2]
[350282368,1737766247221,-511.55,0.00020417,2]
[350282369,1737766247230,-652.14,0.00020417,2]
[350282370,1737766247239,-500.0,0.00020417,2]
[350282371,1737766247249,-348.13,0.00020417,2]
[350282372,1737766247259,-500.0,0.00020417,2]
[350282373,1737766247268,-628.36,0.00020417,2]
[350282374,1737766247277,-916.0,0.00020417,2]
[350282375,1737766247286,-1094.4,0.00020417,2]
[350282376,1737766247295,-150.0,0.00020419,4]
[350282377,1737766247304,-150.0,0.00020439,4]
[350282378,1737766247314,-150.0,0.00020465,4]
[350282379,1737766247323,-150.0,0.00020479,4]
[350282380,1737766247333,-2110.0,0.000205,2]
[350282381,1737766247342,-150.0,0.000205,8]
[350282382,1737766247352,-156.42924986,0.000205,2]
[350282383,1737766247487,-22334.79869675,0.00020514,2]
[350282384,1737766247497,-500.0,0.0002052,2]
[350282385,1737766247506,-1000.0,0.00020521,2]
[350282386,1737766247516,-150.0,0.00020539,4]
[350282387,1737766247525,-177.53,0.00020548,2]
[350282388,1737766247535,-20445.88,0.00020548,2]
[350282389,1737766247544,-478.549795,0.00020554,2]
[350282390,1737766247553,-490.821105,0.00020554,2]
[350282391,1737766247563,-500.0,0.00020554,2]
[350282392,1737766247573,-154.19626386,0.00020554,2]
[350282393,1737766247582,-613.79,0.00020554,2]
[350282394,1737766247591,-500.0,0.00020554,2]
[350282395,1737766247600,-500.0,0.00020554,2]
[350282396,1737766247609,-666.7,0.00020554,2]
[350282397,1737766247618,-500.0,0.00020554,2]
[350282398,1737766247628,-500.0,0.00020554,2]
[350282399,1737766247638,-876.65,0.00020554,2]
[350282400,1737766247647,-686.14,0.00020554,2]
[350282401,1737766247657,-500.0,0.00020554,2]
[350282402,1737766247666,-500.0,0.00020554,2]
[350282403,1737766247675,-775.57,0.00020554,2]
[350282404,1737766247684,-828.64,0.00020554,2]
[350282405,1737766247693,-500.0,0.00020554,2]
[350282406,1737766247702,-672.65,0.00020554,2]
[350282407,1737766247711,-501.05,0.00020554,2]
[350282408,1737766247720,-694.2,0.00020554,2]
[350282409,1737766247729,-989.16,0.00020554,2]
[350282410,1737766247738,-1184.1,0.00020554,2]
[350282411,1737766247748,-1009.71,0.00020554,2]
[350282412,1737766247762,-1377.37,0.00020554,2]
[350282413,1737766247771,-500.0,0.00020554,2]
[350282414,1737766247780,-500.0,0.00020554,2]
[350282415,1737766247790,-500.0,0.00020554,2]
[350282416,1737766247801,-700.38,0.00020554,2]
[350282417,1737766247811,-500.0,0.00020554,2]
[350282418,1737766247820,-1237.33,0.00020554,2]
[350282419,1737766247830,-757.47,0.00020554,2]
[350282420,1737766247840,-500.0,0.00020554,2]
[350282421,1737766247850,-500.0,0.00020554,2]
[350282422,1737766247860,-528.77,0.00020554,2]
[350282423,1737766247869,-500.0,0.00020554,2]
[350282424,1737766247878,-233.08,0.00020554,2]
[350282425,1737766247887,-500.0,0.00020554,2]
[350282426,1737766247896,-600.49,0.00020554,2]
[350282427,1737766247906,-603.12,0.00020554,2]
[350282428,1737766247915,-500.0,0.00020554,2]
[350282429,1737766247924,-678.28,0.00020554,2]
[350282430,1737766247933,-757.12,0.00020554,2]
[350282431,1737766247943,-500.0,0.00020554,2]
[350282432,1737766247952,-664.78,0.00020554,2]
[350282433,1737766247961,-1194.58,0.00020554,2]
[350282434,1737766247970,-500.0,0.00020554,2]
[350282435,1737766247981,-1260.01,0.00020554,2]
[350282436,1737766247989,-500.0,0.00020554,2]
[350282437,1737766247998,-1586.5,0.00020554,2]
[350282438,1737766248007,-500.0,0.00020554,2]
[350282439,1737766248017,-339.01,0.00020554,2]
[350282440,1737766248026,-500.0,0.00020554,2]
[350282441,1737766248034,-500.0,0.00020554,2]
[350282442,1737766248042,-564.49,0.00020554,2]
[350282443,1737766248051,-729.96,0.00020554,2]
[350282444,1737766248060,-500.0,0.00020554,2]
[350282445,1737766248070,-511.55,0.00020554,2]
[350282446,1737766248081,-544.58,0.00020554,2]
[350282447,1737766248098,-652.14,0.00020554,2]
[350282448,1737766248107,-500.0,0.00020554,2]
[350282449,1737766248117,-500.0,0.00020554,2]
[350282450,1737766248126,-916.0,0.00020554,2]
[350282451,1737766248135,-1094.4,0.00020554,2]
[350282452,1737766248144,-268.41341043,0.00020567,2]
[350282453,1737766248154,-232.17837313,0.00020567,2]
[350282454,1737766248163,-150.0,0.00020581,4]
[350282455,1737766248172,-10334.0,0.00020595,2]
[350282456,1737766248181,-150.0,0.00020598,4]
[350282457,1737766248190,-152.0,0.00020602,5]
[350282458,1737766248199,-2726.73098621,0.00020628,2]
[350282459,1737766248209,-508.47938671,0.00020657,2]
[350282460,1737766248218,-150.0,0.00020658,4]
[350282461,1737766248227,-150.0,0.00020658,4]
[350282462,1737766248237,-22334.79869675,0.00020672,2]
[350282463,1737766248247,-500.0,0.00020691,2]
[350282464,1737766248256,-613.79,0.00020691,2]
[350282465,1737766248266,-500.0,0.00020691,2]
[350282466,1737766248275,-500.0,0.00020691,2]
[350282467,1737766248285,-666.7,0.00020691,2]
[350282468,1737766248295,-500.0,0.00020691,2]
[350282469,1737766248306,-500.0,0.00020691,2]
[350282470,1737766248316,-876.65,0.00020691,2]
[350282471,1737766248326,-686.14,0.00020691,2]
[350282472,1737766248335,-500.0,0.00020691,2]
[350282473,1737766248345,-500.0,0.00020691,2]
[350282474,1737766248354,-828.64,0.00020691,2]
[350282475,1737766248365,-775.57,0.00020691,2]
[350282476,1737766248377,-500.0,0.00020691,2]
[350282477,1737766248387,-672.65,0.00020691,2]
[350282478,1737766248396,-501.05,0.00020691,2]
[350282479,1737766248405,-694.2,0.00020691,2]
[350282480,1737766248416,-989.16,0.00020691,2]
[350282481,1737766248425,-1184.1,0.00020691,2]
[350282482,1737766248435,-1009.71,0.00020691,2]
[350282483,1737766248444,-1377.37,0.00020691,2]
[350282484,1737766248453,-500.0,0.00020691,2]
[350282485,1737766248463,-500.0,0.00020691,2]
[350282486,1737766248473,-500.0,0.00020691,2]
[350282487,1737766248483,-700.38,0.00020691,2]
[350282488,1737766248492,-500.0,0.00020691,2]
[350282489,1737766248502,-1237.33,0.00020691,2]
[350282490,1737766248513,-757.47,0.00020691,2]
[350282491,1737766248523,-500.0,0.00020691,2]
[350282492,1737766248533,-500.0,0.00020691,2]
[350282493,1737766248542,-528.77,0.00020691,2]
[350282494,1737766248553,-500.0,0.00020691,2]
[350282495,1737766248563,-500.0,0.00020691,2]
[350282496,1737766248572,-600.49,0.00020691,2]
[350282497,1737766248581,-500.0,0.00020691,2]
[350282498,1737766248590,-678.28,0.00020691,2]
[350282499,1737766248600,-757.12,0.00020691,2]
[350282500,1737766248610,-500.0,0.00020691,2]
[350282501,1737766248619,-664.78,0.00020691,2]
[350282502,1737766248629,-1194.58,0.00020691,2]
[350282503,1737766248638,-500.0,0.00020691,2]
[350282504,1737766248647,-1260.01,0.00020691,2]
[350282505,1737766248656,-500.0,0.00020691,2]
[350282506,1737766248666,-1586.5,0.00020691,2]
[350282507,1737766248675,-500.0,0.00020691,2]
[350282508,1737766248684,-500.0,0.00020691,2]
[350282509,1737766248693,-500.0,0.00020691,2]
[350282510,1737766248702,-564.49,0.00020691,2]
[350282511,1737766248711,-729.96,0.00020691,2]
[350282512,1737766248720,-500.0,0.00020691,2]
[350282513,1737766248730,-511.55,0.00020691,2]
[350282514,1737766248739,-544.58,0.00020691,2]
[350282515,1737766248750,-652.14,0.00020691,2]
[350282516,1737766248762,-500.0,0.00020691,2]
[350282517,1737766248771,-500.0,0.00020691,2]
[350282518,1737766248781,-916.0,0.00020691,2]
[350282519,1737766248791,-1094.4,0.00020691,2]
[350282520,1737766248803,-150.0,0.00020697,4]
[350282521,1737766248813,-20151.53402152,0.000207,2]
[350282522,1737766248822,-150.0,0.00020718,4]
[350282523,1737766248832,-150.0,0.00020731,2]
[350282524,1737766248841,-150.0,0.00020778,4]
[350282525,1737766248850,-3400.0,0.000208,7]
[350282526,1737766248859,-150.0,0.00020813,4]
[350282527,1737766248868,-500.0,0.00020827,2]
[350282528,1737766248878,-500.0,0.00020828,2]
[350282529,1737766248887,-613.79,0.00020828,2]
[350282530,1737766248897,-500.0,0.00020828,2]
[350282531,1737766248906,-500.0,0.00020828,2]
[350282532,1737766248915,-666.7,0.00020828,2]
[350282533,1737766248924,-500.0,0.00020828,2]
[350282534,1737766248934,-500.0,0.00020828,2]
[350282535,1737766248944,-876.65,0.00020828,2]
[350282536,1737766248954,-686.14,0.00020828,2]
[350282537,1737766248963,-500.0,0.00020828,2]
[350282538,1737766248973,-500.0,0.00020828,2]
[350282539,1737766248982,-828.64,0.00020828,2]
[350282540,1737766248991,-775.57,0.00020828,2]
[350282541,1737766249001,-167.6,0.00020828,2]
[350282542,1737766249010,-672.65,0.00020828,2]
[350282543,1737766249019,-501.05,0.00020828,2]
[350282544,1737766249029,-694.2,0.00020828,2]
[350282545,1737766249038,-989.16,0.00020828,2]
[350282546,1737766249047,-1184.1,0.00020828,2]
[350282547,1737766249056,-1009.71,0.00020828,2]
[350282548,1737766249065,-1377.37,0.00020828,2]
[350282549,1737766249074,-500.0,0.00020828,2]
[350282550,1737766249084,-500.0,0.00020828,2]
[350282551,1737766249093,-500.0,0.00020828,2]
[350282552,1737766249103,-700.38,0.00020828,2]
[350282553,1737766249112,-500.0,0.00020828,2]
[350282554,1737766249122,-1237.33,0.00020828,2]
[350282555,1737766249132,-757.47,0.00020828,2]
[350282556,1737766249141,-500.0,0.00020828,2]
[350282557,1737766249151,-500.0,0.00020828,2]
[350282558,1737766249161,-528.77,0.00020828,2]
[350282559,1737766249171,-500.0,0.00020828,2]
[350282560,1737766249182,-500.0,0.00020828,2]
[350282561,1737766249191,-600.49,0.00020828,2]
[350282562,1737766249200,-292.09,0.00020828,2]
[350282563,1737766249211,-678.28,0.00020828,2]
[350282564,1737766249221,-757.12,0.00020828,2]
[350282565,1737766249231,-500.0,0.00020828,2]
[350282566,1737766249242,-664.78,0.00020828,2]
[350282567,1737766249252,-1194.58,0.00020828,2]
[350282568,1737766249262,-500.0,0.00020828,2]
[350282569,1737766249272,-1260.01,0.00020828,2]
[350282570,1737766249282,-500.0,0.00020828,2]
[350282571,1737766249292,-1586.5,0.00020828,2]
[350282572,1737766249303,-500.0,0.00020828,2]
[350282573,1737766249312,-500.0,0.00020828,2]
[350282574,1737766249322,-500.0,0.00020828,2]
[350282575,1737766249332,-564.49,0.00020828,2]
[350282576,1737766249342,-729.96,0.00020828,2]
[350282577,1737766249352,-500.0,0.00020828,2]
[350282578,1737766249363,-511.55,0.00020828,2]
[350282579,1737766249373,-544.58,0.00020828,2]
[350282580,1737766249383,-652.14,0.00020828,2]
[350282581,1737766249393,-500.0,0.00020828,2]
[350282582,1737766249403,-580.160001,0.00020828,2]
[350282583,1737766249413,-916.0,0.00020828,2]
[350282584,1737766249423,-1094.4,0.00020828,2]
[350282585,1737766249433,-22334.79869675,0.00020829,2]
[350282586,1737766249442,-150.0,0.00020838,4]
[350282587,1737766249452,-156.42924986,0.0002085,2]
[350282588,1737766249462,-150.0,0.00020878,4]
[350282589,1737766249472,-1239.2551459,0.00020886,2]
[350282590,1737766249482,-3204.9060428,0.00020886,2]
[350282591,1737766249491,-2000.0,0.00020895,2]
[350282592,1737766249501,-2000.0,0.00020895,2]
[350282593,1737766249511,-2001.8755,0.00020895,2]
[350282594,1737766249520,-2000.0,0.00020895,2]
[350282595,1737766249531,-150.0,0.00020898,4]
[350282596,1737766249542,-129033.00575739,0.000209,2]
[350282597,1737766249554,-2736.68132769,0.000209,2]
[350282598,1737766249564,-26356.35585674,0.000209,2]
[350282599,1737766249574,-193.27023943,0.000209,2]
[350282600,1737766249584,-268.41341043,0.000209,2]
[350282601,1737766249594,-4200.0,0.000209,7]
[350282602,1737766249603,-150.0,0.00020929,4]
[350282603,1737766249613,-656.89,0.00020943,2]
[350282604,1737766249624,-500.0,0.00020955,2]
[350282605,1737766249633,-500.0,0.00020955,2]
[350282606,1737766249643,-500.0,0.00020955,2]
[350282607,1737766249652,-500.0,0.00020955,2]
[350282608,1737766249662,-500.619478,0.00020955,2]
[350282609,1737766249671,-150.0,0.00020958,4]
[350282610,1737766249680,-500.0,0.00020964,2]
[350282611,1737766249690,-500.0,0.00020965,2]
[350282612,1737766249699,-613.79,0.00020965,2]
[350282613,1737766249709,-500.0,0.00020965,2]
[350282614,1737766249719,-500.0,0.00020965,2]
[350282615,1737766249728,-666.7,0.00020965,2]
[350282616,1737766249739,-500.0,0.00020965,2]
[350282617,1737766249750,-500.0,0.00020965,2]
[350282618,1737766249764,-876.65,0.00020965,2]
[350282619,1737766249774,-686.14,0.00020965,2]
[350282620,1737766249783,-500.0,0.00020965,2]
[350282621,1737766249792,-500.0,0.00020965,2]
[350282622,1737766249802,-828.64,0.00020965,2]
[350282623,1737766249811,-775.57,0.00020965,2]
[350282624,1737766249820,-672.65,0.00020965,2]
[350282625,1737766249829,-501.05,0.00020965,2]
[350282626,1737766249840,-694.2,0.00020965,2]
[350282627,1737766249849,-989.16,0.00020965,2]
[350282628,1737766249858,-1184.1,0.00020965,2]
[350282629,1737766249868,-1009.71,0.00020965,2]
[350282630,1737766249878,-1377.37,0.00020965,2]
[350282631,1737766249887,-500.0,0.00020965,2]
[350282632,1737766249898,-500.0,0.00020965,2]
[350282633,1737766249907,-500.0,0.00020965,2]
[350282634,1737766249917,-700.38,0.00020965,2]
[350282635,1737766249927,-500.0,0.00020965,2]
[350282636,1737766249937,-1237.33,0.00020965,2]
[350282637,1737766249947,-757.47,0.00020965,2]
[350282638,1737766249956,-500.0,0.00020965,2]
[350282639,1737766249965,-500.0,0.00020965,2]
[350282640,1737766249974,-528.77,0.00020965,2]
[350282641,1737766249983,-322.28571818,0.00020965,2]
[350282642,1737766249994,-500.0,0.00020965,2]
[350282643,1737766250003,-600.49,0.00020965,2]
[350282644,1737766250013,-678.28,0.00020965,2]
[350282645,1737766250023,-757.12,0.00020965,2]
[350282646,1737766250032,-344.87773397,0.00020965,2]
[350282647,1737766250042,-664.78,0.00020965,2]
[350282648,1737766250052,-1194.58,0.00020965,2]
[350282649,1737766250061,-500.0,0.00020965,2]
[350282650,1737766250071,-1260.01,0.00020965,2]
[350282651,1737766250084,-500.0,0.00020965,2]
[350282652,1737766250093,-1586.5,0.00020965,2]
[350282653,1737766250103,-500.0,0.00020965,2]
[350282654,1737766250113,-500.0,0.00020965,2]
[350282655,1737766250123,-624.25437372,0.00020965,2]
[350282656,1737766250132,-564.49,0.00020965,2]
[350282657,1737766250142,-729.96,0.00020965,2]
[350282658,1737766250151,-500.0,0.00020965,2]
[350282659,1737766250160,-511.55,0.00020965,2]
[350282660,1737766250169,-544.58,0.00020965,2]
[350282661,1737766250178,-652.14,0.00020965,2]
[350282662,1737766250187,-500.0,0.00020965,2]
[350282663,1737766250198,-916.0,0.00020965,2]
[350282664,1737766250208,-1094.4,0.00020965,2]
[350282665,1737766250217,-214.99498812,0.00020973,2]
[350282666,1737766250227,-22334.79869675,0.00020986,2]
[350282667,1737766250236,-115886.86927383,0.00020986,2]
[350282668,1737766250247,-659.0346377,0.00020986,2]
[350282669,1737766250257,-1704.3658037,0.00020986,2]
[350282670,1737766250267,-150.0,0.00020988,4]
[350282671,1737766250276,-84224.30519837,0.00020999,5]
[350282672,1737766250287,-315226.69132076,0.00021,30]
[350282673,1737766250296,-41600.23751873,0.00021,2]
[350282674,1737766250307,-1000.0,0.00021,10]
[350282675,1737766250317,-9436.9631358,0.00021,5]
[350282676,1737766250327,-2513.04,0.00021,2]
[350282677,1737766250337,-2110.0,0.00021,2]
[350282678,1737766250346,-9160.14414701,0.00021,2]
[350282679,1737766250355,-7007.41098148,0.00021,2]
[350282680,1737766250365,-66470.0,0.00021,2]
[350282681,1737766250374,-900.0,0.00021,22]
[350282682,1737766250383,-150.0,0.00021,9]
[350282683,1737766250392,-279.9198,0.00021,2]
[350282684,1737766250401,-279.9198,0.00021,2]
[350282685,1737766250410,-150.0,0.00021017,4]
[350282686,1737766250420,-150.0,0.00021046,4]
[350282687,1737766250430,-1000.0,0.00021053,2]
[350282688,1737766250441,-150.0,0.00021077,4]
[350282689,1737766250451,-188.09,0.00021081,2]
[350282690,1737766250460,-152.0,0.00021082,6]
[350282691,1737766250470,-150.0,0.00021097,4]
[350282692,1737766250479,-6009.09353,0.000211,6]
[350282693,1737766250488,-500.0,0.00021101,2]
[350282694,1737766250498,-500.0,0.00021102,2]
[350282695,1737766250508,-613.79,0.00021102,2]
[350282696,1737766250518,-500.0,0.00021102,2]
[350282697,1737766250528,-500.0,0.00021102,2]
[350282698,1737766250537,-666.7,0.00021102,2]
[350282699,1737766250547,-500.0,0.00021102,2]
[350282700,1737766250555,-500.0,0.00021102,2]
[350282701,1737766250565,-876.65,0.00021102,2]
[350282702,1737766250576,-686.14,0.00021102,2]